fUSD/lending_fUSD_20250514
["ID","MTS","AMOUNT","RATE_DAILY","PERIOD"]
[361070855,1747231831652,-189.6,0.00010773,2]
[361070856,1747231831662,-242.63657219,0.00010863,2]
[361070857,1747231831674,-257.36342781,0.00010863,2]
[361070858,1747231831683,-339.97730513,0.00010863,2]
[361070859,1747231831696,-860.02269487,0.00010863,2]
[361070860,1747231831707,-300.0,0.00010863,2]
[361070861,1747231831716,-300.0,0.00010863,2]
[361070862,1747231831725,-1990.59076153,0.00010864,2]
[361070863,1747231831776,-415.32026094,0.00010864,2]
[361070864,1747231831787,-642.06860233,0.00010864,2]
[361070865,1747231831799,-271.414428,0.00010864,2]
[361070866,1747231831811,-295.80682,0.00010864,2]
[361070867,1747231831822,-10432.31775571,0.00010864,2]
[361070868,1747231831832,-150.0,0.00010872,2]
[361070869,1747231831842,-10232.09624429,0.00010873,2]
[361070870,1747231831974,-7584.80622634,0.00010873,2]
[361070871,1747231831985,-1409.64450223,0.00010873,2]
[361070872,1747231831996,-3115.66828,0.00010873,2]
[361070873,1747231832007,-2596.9,0.00010873,2]
[361070874,1747231832019,-518.32839176,0.00010873,2]
[361070875,1747231832030,-1280.86813107,0.00010873,2]
[361070876,1747231832111,-321.29154664,0.00010873,2]
[361071054,1747231837517,-953.82884201,0.00010873,2]
[361071055,1747231837580,-1487.44737971,0.00010873,2]
[361071056,1747231837590,-1.59812552,0.00010873,2]
[361071057,1747231837617,-183.53827448,0.00010873,2]
[361071058,1747231837627,-2049.4368915,0.00010874,2]
[361071059,1747231837742,-591.22387905,0.00010874,2]
[361071060,1747231837766,-30021.58312945,0.00010874,2]
[361071061,1747231837776,-207.4,0.00010964,2]
[361071062,1747231837785,-151.0,0.00010965,2]
[361071063,1747231837793,-151.0,0.00010965,2]
[361071064,1747231837802,-668.65185757,0.00010965,2]
[361071065,1747231837812,-400.0,0.0001097,2]
[361071066,1747231837821,-400.0,0.0001097,2]
[361071067,1747231837831,-400.0,0.0001097,2]
[361071068,1747231837840,-400.0,0.0001097,2]
[361071069,1747231837849,-400.0,0.0001097,2]
[361071070,1747231837859,-400.0,0.0001097,2]
[361071071,1747231837870,-400.0,0.0001097,2]
[361071072,1747231837880,-400.0,0.0001097,2]
[361071073,1747231837890,-320.48758154,0.0001097,2]
[361071074,1747231837899,-721.9,0.0001097,2]
[361071075,1747231837909,-689.02,0.0001097,2]
[361071076,1747231837919,-400.0,0.0001097,2]
[361071077,1747231837928,-400.0,0.0001097,2]
[361071078,1747231837937,-400.0,0.0001097,2]
[361071080,1747231837947,-1397.49,0.0001097,2]
[361071081,1747231837956,-676.07,0.0001097,2]
[361071082,1747231837966,-400.0,0.0001097,2]
[361071083,1747231837975,-511.5612539,0.0001097,2]
[361071084,1747231837984,-458.9063656,0.0001097,2]
[361071085,1747231837995,-400.0,0.0001097,2]
[361071086,1747231838004,-3146.17,0.0001097,2]
[361071087,1747231838014,-1036.18,0.0001097,2]
[361071088,1747231838023,-400.0,0.0001097,2]
[361071089,1747231838032,-1093.2,0.0001097,2]
[361071090,1747231838042,-400.0,0.0001097,2]
[361071091,1747231838053,-2812.09,0.0001097,2]
[361071092,1747231838062,-7437.02,0.0001097,2]
[361071093,1747231838072,-400.0,0.0001097,2]
[361071094,1747231838082,-400.0,0.0001097,2]
[361071095,1747231838091,-514.18,0.0001097,2]
[361071096,1747231838100,-1025.11,0.0001097,2]
[361071097,1747231838110,-400.0,0.0001097,2]
[361071098,1747231838119,-400.0,0.0001097,2]
[361071099,1747231838130,-6741.147066,0.0001097,2]
[361071100,1747231838140,-207.829378,0.0001097,2]
[361071101,1747231838149,-400.0,0.0001097,2]
[361071102,1747231838158,-1078.9,0.0001097,2]
[361071103,1747231838169,-400.0,0.0001097,2]
[361071104,1747231838178,-546.11,0.0001097,2]
[361071105,1747231838188,-400.0,0.0001097,2]
[361071106,1747231838198,-787.59,0.0001097,2]
[361071107,1747231838207,-768.88,0.0001097,2]
[361071108,1747231838218,-400.0,0.0001097,2]
[361071109,1747231838227,-400.0,0.0001097,2]
[361071110,1747231838236,-416.36,0.0001097,2]
[361071111,1747231838246,-400.0,0.0001097,2]
[361071112,1747231838255,-4392.52,0.0001097,2]
[361071113,1747231838265,-476.543055,0.0001097,2]
[361071114,1747231838275,-400.0,0.0001097,2]
[361071115,1747231838284,-400.0,0.0001097,2]
[361071116,1747231838294,-400.0,0.0001097,2]
[361071117,1747231838304,-2221.5,0.0001097,2]
[361071118,1747231838314,-400.0,0.0001097,2]
[361071119,1747231838323,-400.0,0.0001097,2]
[361071120,1747231838333,-863.09,0.0001097,2]
[361071121,1747231838342,-400.0,0.00010971,2]
[361071122,1747231838353,-624.77,0.00010971,2]
[361071123,1747231838362,-438.82,0.00010971,2]
[361071124,1747231838373,-400.0,0.00010971,2]
[361071125,1747231838387,-400.0,0.00010971,2]
[361071126,1747231838397,-572.78,0.00010971,2]
[361071127,1747231838406,-400.0,0.00010971,2]
[361071128,1747231838415,-400.0,0.00010971,2]
[361071129,1747231838424,-413.54,0.00010971,2]
[361071130,1747231838433,-400.0,0.00010971,2]
[361071131,1747231838443,-400.0,0.00010971,2]
[361071132,1747231838452,-400.0,0.00010971,2]
[361071133,1747231838461,-400.0,0.00010971,2]
[361071134,1747231838470,-400.0,0.00010971,2]
[361071135,1747231838479,-400.0,0.00010971,2]
[361071136,1747231838489,-1033.09,0.00010971,2]
[361071137,1747231838498,-400.0,0.00010971,2]
[361071138,1747231838507,-400.0,0.00010971,2]
[361071139,1747231838516,-496.65,0.00010971,2]
[361071140,1747231838526,-400.0,0.00010971,2]
[361071141,1747231838536,-438.92,0.00010971,2]
[361071142,1747231838545,-400.0,0.00010971,2]
[361071143,1747231838555,-433.87,0.00010971,2]
[361071144,1747231838565,-400.0,0.00010971,2]
[361071145,1747231838575,-585.88,0.00010971,2]
[361071146,1747231838584,-421.97,0.00010971,2]
[361071147,1747231838594,-250.0,0.00010971,2]
[361071148,1747231838604,-400.0,0.00010971,2]
[361071149,1747231838614,-689.64,0.00010971,2]
[361071150,1747231838626,-205.14726649,0.00010971,2]
[361071151,1747231838641,-400.0,0.00010971,2]
[361071152,1747231838652,-728.56,0.00010971,2]
[361071153,1747231838662,-400.0,0.00010971,2]
[361071154,1747231838672,-400.0,0.00010971,2]
[361071155,1747231838682,-400.0,0.00010971,2]
[361071156,1747231838692,-400.0,0.00010971,2]
[361071157,1747231838705,-400.0,0.00010971,2]
[361071158,1747231838715,-400.0,0.00010971,2]
[361071159,1747231838725,-400.0,0.00010971,2]
[361071160,1747231838734,-400.0,0.00010971,2]
[361071161,1747231838744,-400.0,0.00010971,2]
[361071162,1747231838754,-400.0,0.00010971,2]
[361071163,1747231838764,-469.16,0.00010971,2]
[361071164,1747231838775,-400.0,0.00010971,2]
[361071165,1747231838784,-400.0,0.00010971,2]
[361071166,1747231838793,-400.0,0.00010971,2]
[361071167,1747231838803,-842.77,0.00010971,2]
[361071168,1747231838812,-400.0,0.00010971,2]
[361071169,1747231838822,-400.0,0.00010971,2]
[361071170,1747231838832,-400.0,0.00010971,2]
[361071171,1747231838840,-458.59,0.00010971,2]
[361071172,1747231838850,-400.0,0.00010971,2]
[361071173,1747231838859,-400.0,0.00010971,2]
[361071174,1747231838869,-629.96,0.00010971,2]
[361071175,1747231838880,-400.0,0.00010971,2]
[361071176,1747231838889,-1159.29,0.00010971,2]
[361071177,1747231838899,-415.11843666,0.00010971,2]
[361071178,1747231838908,-156.56044847,0.00010971,2]
[361071179,1747231838918,-400.0,0.00010971,2]
[361071180,1747231838928,-400.0,0.00010971,2]
[361071181,1747231838937,-400.0,0.00010971,2]
[361071182,1747231838946,-400.0,0.00010971,2]
[361071183,1747231838956,-400.0,0.00010971,2]
[361071184,1747231838964,-400.0,0.00010971,2]
[361071185,1747231838974,-400.0,0.00010971,2]
[361071186,1747231838983,-400.0,0.00010971,2]
[361071187,1747231838993,-481.43,0.00010971,2]
[361071188,1747231839003,-400.0,0.00010971,2]
[361071189,1747231839012,-548.88,0.00010971,2]
[361071190,1747231839021,-430.80256392,0.00010971,2]
[361071191,1747231839030,-400.0,0.00010971,2]
[361071192,1747231839040,-400.0,0.00010971,2]
[361071193,1747231839050,-400.0,0.00010971,2]
[361071194,1747231839059,-400.0,0.00010971,2]
[361071195,1747231839069,-400.0,0.00010971,2]
[361071196,1747231839078,-575.12,0.00010971,2]
[361071197,1747231839087,-440.37,0.00010971,2]
[361071198,1747231839096,-400.0,0.00010971,2]
[361071199,1747231839106,-400.0,0.00010971,2]
[361071200,1747231839115,-400.0,0.00010971,2]
[361071201,1747231839124,-400.0,0.00010971,2]
[361071202,1747231839135,-578.35,0.00010971,2]
[361071203,1747231839145,-563.34,0.00010971,2]
[361071204,1747231839154,-400.0,0.00010971,2]
[361071205,1747231839164,-471.12,0.00010971,2]
[361071206,1747231839174,-538.01572552,0.00010971,2]
[361071207,1747231839183,-534.93,0.00010971,2]
[361071208,1747231839192,-400.0,0.00010971,2]
[361071209,1747231839202,-400.0,0.00010971,2]
[361071210,1747231839211,-481.69,0.00010971,2]
[361071211,1747231839226,-400.0,0.00010971,2]
[361071212,1747231839236,-360.67834145,0.00010971,2]
[361071213,1747231839246,-400.0,0.00010971,2]
[361071214,1747231839256,-400.0,0.00010971,2]
[361071215,1747231839266,-400.0,0.00010971,2]
[361071216,1747231839275,-400.0,0.00010971,2]
[361071217,1747231839285,-758.96,0.00010971,2]
[361071218,1747231839294,-400.0,0.00010971,2]
[361071219,1747231839304,-400.0,0.00010971,2]
[361071220,1747231839313,-400.0,0.00010971,2]
[361071221,1747231839323,-400.0,0.00010971,2]
[361071222,1747231839332,-400.0,0.00010971,2]
[361071223,1747231839345,-400.0,0.00010971,2]
[361071224,1747231839354,-400.0,0.00010971,2]
[361071225,1747231839364,-400.0,0.00010971,2]
[361071226,1747231839374,-476.55231578,0.00010971,2]
[361071227,1747231839385,-400.0,0.00010971,2]
[361071228,1747231839396,-400.0,0.00010971,2]
[361071229,1747231839406,-652.06,0.00010971,2]
[361071233,1747231839673,-514.41,0.00010971,2]
[361071234,1747231839683,-400.0,0.00010971,2]
[361071235,1747231839692,-608.2,0.00010971,2]
[361071236,1747231839706,-389.19266269,0.00010971,2]
[361071237,1747231839716,-434.12,0.00010971,2]
[361071238,1747231839726,-572.2,0.00010971,2]
[361071239,1747231839735,-400.0,0.00010971,2]
[361071240,1747231839745,-437.97,0.00010971,2]
[361071241,1747231839754,-400.0,0.00010971,2]
[361071242,1747231839764,-540.01,0.00010971,2]
[361071243,1747231839774,-400.0,0.00010971,2]
[361071244,1747231839783,-400.0,0.00010971,2]
[361071245,1747231839793,-537.3,0.00010971,2]
[361071246,1747231839802,-488.03,0.00010971,2]
[361071247,1747231839812,-1805.69,0.00010971,2]
[361071248,1747231839821,-400.0,0.00010971,2]
[361071249,1747231839830,-400.0,0.00010971,2]
[361071250,1747231839839,-400.0,0.00010971,2]
[361071251,1747231839849,-400.0,0.00010971,2]
[361071252,1747231839858,-518.92,0.00010971,2]
[361071253,1747231839868,-400.0,0.00010971,2]
[361071254,1747231839877,-1574.85,0.00010971,2]
[361071255,1747231839892,-400.0,0.00010971,2]
[361071256,1747231839901,-400.0,0.00010971,2]
[361071257,1747231839910,-400.0,0.00010971,2]
[361071258,1747231839919,-400.0,0.00010971,2]
[361071259,1747231839929,-355.543243,0.00010971,2]
[361071260,1747231839938,-400.0,0.00010971,2]
[361071261,1747231839948,-400.0,0.00010971,2]
[361071262,1747231839958,-584.26,0.00010971,2]
[361071263,1747231839967,-400.0,0.00010971,2]
[361071264,1747231839977,-1178.01,0.00010971,2]
[361071265,1747231839986,-400.0,0.00010971,2]
[361071266,1747231839996,-400.0,0.00010971,2]
[361071267,1747231840005,-400.0,0.00010971,2]
[361071268,1747231840014,-400.0,0.00010971,2]
[361071269,1747231840024,-400.0,0.00010971,2]
[361071270,1747231840034,-413.81138427,0.00010971,2]
[361071271,1747231840043,-1030.61,0.00010971,2]
[361071272,1747231840053,-1072.83,0.00010971,2]
[361071273,1747231840062,-400.0,0.00010971,2]
[361071274,1747231840072,-1101.97,0.00010971,2]
[361071275,1747231840082,-588.33,0.00010971,2]
[361071276,1747231840092,-400.0,0.00010971,2]
[361071277,1747231840101,-400.0,0.00010971,2]
[361071278,1747231840111,-400.0,0.00010971,2]
[361071279,1747231840120,-400.0,0.00010971,2]
[361071280,1747231840129,-400.0,0.00010971,2]
[361071281,1747231840141,-641.08,0.00010971,2]
[361071282,1747231840151,-400.0,0.00010971,2]
[361071283,1747231840161,-1571.62,0.00010971,2]
[361071284,1747231840172,-806.27,0.00010971,2]
[361071285,1747231840181,-400.0,0.00010971,2]
[361071286,1747231840191,-2548.39,0.00010971,2]
[361071287,1747231840201,-400.0,0.00010971,2]
[361071288,1747231840211,-400.0,0.00010971,2]
[361071289,1747231840220,-400.0,0.00010971,2]
[361071290,1747231840229,-400.0,0.00010971,2]
[361071291,1747231840238,-833.48,0.00010971,2]
[361071292,1747231840248,-3195.4,0.00010971,2]
[361071293,1747231840257,-785.51,0.00010971,2]
[361071294,1747231840267,-359.92344529,0.00010971,2]
[361071295,1747231840276,-406.34085812,0.00010971,2]
[361071296,1747231840285,-400.0,0.00010971,2]
[361071297,1747231840295,-400.84108858,0.00010971,2]
[361071298,1747231840304,-400.0,0.00010971,2]
[361071299,1747231840314,-482.64,0.00010971,2]
[361071300,1747231840323,-400.0,0.00010971,2]
[361071301,1747231840333,-647.67,0.00010971,2]
[361071302,1747231840343,-400.0,0.00010971,2]
[361071303,1747231840352,-400.0,0.00010971,2]
[361071304,1747231840362,-400.0,0.00010971,2]
[361071305,1747231840372,-1296.19,0.00010971,2]
[361071306,1747231840383,-400.0,0.00010971,2]
[361071307,1747231840392,-2202.89,0.00010971,2]
[361071308,1747231840402,-400.0,0.00010971,2]
[361071309,1747231840411,-400.0,0.00010971,2]
[361071310,1747231840422,-803.66,0.00010971,2]
[361071311,1747231840431,-897.8,0.00010971,2]
[361071312,1747231840441,-400.0,0.00010971,2]
[361071313,1747231840450,-2105.65,0.00010971,2]
[361071314,1747231840459,-1206.03,0.00010971,2]
[361071315,1747231840469,-400.0,0.00010971,2]
[361071316,1747231840478,-400.0,0.00010971,2]
[361071317,1747231840487,-1589.44,0.00010971,2]
[361071318,1747231840496,-471.24,0.00010971,2]
[361071319,1747231840506,-524.83550555,0.00010971,2]
[361071320,1747231840515,-592.39,0.00010971,2]
[361071321,1747231840525,-400.0,0.00010971,2]
[361071322,1747231840534,-790.06,0.00010971,2]
[361071323,1747231840543,-400.0,0.00010971,2]
[361071324,1747231840552,-400.0,0.00010971,2]
[361071325,1747231840561,-400.0,0.00010971,2]
[361071326,1747231840571,-1618.51,0.00010971,2]
[361071327,1747231840580,-400.0,0.00010971,2]
[361071328,1747231840590,-400.0,0.00010971,2]
[361071329,1747231840600,-529.27297757,0.00010971,2]
[361071330,1747231840609,-400.0,0.00010971,2]
[361071331,1747231840619,-14381.7,0.00010971,2]
[361071332,1747231840628,-1126.5,0.00010971,2]
[361071333,1747231840638,-402.93322443,0.00010971,2]
[361071334,1747231840648,-913.78,0.00010971,2]
[361071335,1747231840657,-535.81,0.00010971,2]
[361071336,1747231840667,-513.62379465,0.00010971,2]
[361071337,1747231840676,-400.0,0.00010971,2]
[361071338,1747231840685,-400.0,0.00010971,2]
[361071339,1747231840695,-400.0,0.00010971,2]
[361071340,1747231840708,-400.0,0.00010971,2]
[361071341,1747231840717,-400.0,0.00010971,2]
[361071342,1747231840727,-2976.97,0.00010971,2]
[361071343,1747231840736,-1281.65,0.00010971,2]
[361071344,1747231840746,-658.35,0.00010971,2]
[361071345,1747231840755,-400.0,0.00010971,2]
[361071346,1747231840764,-1352.47,0.00010971,2]
[361071347,1747231840774,-2522.86,0.00010971,2]
[361071348,1747231840784,-400.0,0.00010971,2]
[361071349,1747231840794,-425.69,0.00010971,2]
[361071350,1747231840803,-6084.46,0.00010971,2]
[361071351,1747231840813,-400.0,0.00010971,2]
[361071352,1747231840822,-400.0,0.00010971,2]
[361071353,1747231840831,-400.0,0.00010971,2]
[361071354,1747231840841,-1535.38,0.00010971,2]
[361071355,1747231840850,-2141.96,0.00010971,2]
[361071356,1747231840859,-483.06,0.00010971,2]
[361071357,1747231840869,-400.0,0.00010971,2]
[361071358,1747231840878,-400.0,0.00010971,2]
[361071359,1747231840888,-1076.73,0.00010971,2]
[361071360,1747231840898,-1217.17,0.00010971,2]
[361071361,1747231840907,-400.0,0.00010971,2]
[361071362,1747231840916,-2381.42,0.00010971,2]
[361071363,1747231840926,-400.0,0.00010971,2]
[361071364,1747231840936,-400.0,0.00010971,2]
[361071365,1747231840946,-400.0,0.00010971,2]
[361071366,1747231840955,-663.93,0.00010971,2]
[361071367,1747231840965,-400.0,0.00010971,2]
[361071368,1747231840974,-400.0,0.00010971,2]
[361071369,1747231840983,-591.13,0.00010971,2]
[361071370,1747231840992,-752.19,0.00010971,2]
[361071371,1747231841002,-400.0,0.00010971,2]
[361071372,1747231841011,-3429.38,0.00010971,2]
[361071373,1747231841021,-400.0,0.00010971,2]
[361071374,1747231841030,-806.28,0.00010971,2]
[361071375,1747231841040,-400.0,0.00010971,2]
[361071376,1747231841049,-469.6,0.00010971,2]
[361071377,1747231841058,-400.0,0.00010971,2]
[361071378,1747231841067,-1701.72,0.00010971,2]
[361071379,1747231841077,-1701.72,0.00010971,2]
[361071380,1747231841087,-400.0,0.00010971,2]
[361071381,1747231841096,-400.0,0.00010971,2]
[361071382,1747231841106,-441.57,0.00010971,2]
[361071383,1747231841115,-400.0,0.00010971,2]
[361071384,1747231841125,-745.48,0.00010971,2]
[361071385,1747231841135,-400.0,0.00010971,2]
[361071386,1747231841145,-434.83,0.00010971,2]
[361071387,1747231841154,-4839.43,0.00010971,2]
[361071388,1747231841163,-400.0,0.00010971,2]
[361071389,1747231841175,-498.57,0.00010971,2]
[361071390,1747231841185,-400.0,0.00010971,2]
[361071391,1747231841195,-946.11,0.00010971,2]
[361071392,1747231841205,-400.0,0.00010971,2]
[361071393,1747231841215,-400.0,0.00010971,2]
[361071394,1747231841224,-400.0,0.00010971,2]
[361071395,1747231841234,-2695.34,0.00010971,2]
[361071396,1747231841243,-876.94,0.00010971,2]
[361071397,1747231841253,-458.95,0.00010971,2]
[361071398,1747231841263,-400.0,0.00010971,2]
[361071399,1747231841272,-1424.41,0.00010971,2]
[361071400,1747231841282,-400.0,0.00010971,2]
[361071401,1747231841292,-729.6,0.00010971,2]
[361071402,1747231841301,-400.0,0.00010971,2]
[361071403,1747231841311,-555.61,0.00010971,2]
[361071404,1747231841320,-400.0,0.00010971,2]
[361071405,1747231841330,-400.0,0.00010971,2]
[361071406,1747231841340,-611.22,0.00010971,2]
[361071407,1747231841349,-400.0,0.00010971,2]
[361071408,1747231841357,-400.0,0.00010971,2]
[361071409,1747231841367,-2034.31,0.00010971,2]
[361071410,1747231841375,-1242.71,0.00010971,2]
[361071411,1747231841387,-400.0,0.00010971,2]
[361071412,1747231841396,-1277.48,0.00010971,2]
[361071413,1747231841406,-2448.21,0.00010971,2]
[361071414,1747231841416,-400.0,0.00010971,2]
[361071415,1747231841426,-400.0,0.00010971,2]
[361071416,1747231841435,-671.48,0.00010971,2]
[361071417,1747231841445,-400.0,0.00010971,2]
[361071418,1747231841454,-400.0,0.00010971,2]
[361071419,1747231841464,-400.0,0.00010971,2]
[361071420,1747231841474,-31345.44519849,0.00010971,2]
[361071421,1747231841572,-489.46340419,0.00010971,2]
[361071422,1747231841591,-824.93485951,0.00010971,2]
[361071423,1747231841603,-5011.24653781,0.00010971,2]
[361071424,1747231841613,-1367.76,0.00010971,2]
[361071425,1747231841622,-400.0,0.00010971,2]
[361071426,1747231841631,-400.0,0.00010971,2]
[361071427,1747231841641,-530.06099091,0.00010971,2]
[361071428,1747231841650,-400.0,0.00010971,2]
[361071429,1747231841660,-1814.19,0.00010971,2]
[361071430,1747231841669,-400.0,0.00010971,2]
[361071431,1747231841678,-400.0,0.00010971,2]
[361071432,1747231841688,-1283.83,0.00010971,2]
[361071433,1747231841698,-400.0,0.00010971,2]
[361071434,1747231841711,-1828.53,0.00010971,2]
[361071435,1747231841720,-2005.91,0.00010971,2]
[361071436,1747231841730,-400.0,0.00010971,2]
[361071437,1747231841740,-425.32,0.00010971,2]
[361071438,1747231841750,-400.0,0.00010971,2]
[361071439,1747231841760,-567.01,0.00010971,2]
[361071440,1747231841770,-400.0,0.00010971,2]
[361071441,1747231841780,-400.0,0.00010971,2]
[361071442,1747231841790,-400.0,0.00010971,2]
[361071443,1747231841800,-766.14247128,0.00010971,2]
[361071444,1747231841812,-2813.57906416,0.00010971,2]
[361071445,1747231841830,-1525.03846456,0.00010971,2]
[361071446,1747231841840,-1000.0,0.00010971,2]
[361071447,1747231841849,-400.0,0.00010971,2]
[361071448,1747231841859,-400.0,0.00010971,2]
[361071449,1747231841870,-832.56,0.00010971,2]
[361071450,1747231841880,-400.0,0.00010971,2]
[361071451,1747231841891,-870.74,0.00010971,2]
[361071452,1747231841901,-400.0,0.00010971,2]
[361071453,1747231841910,-4332.26,0.00010971,2]
[361071454,1747231841919,-563.35,0.00010971,2]
[361071455,1747231841929,-440.68,0.00010971,2]
[361071456,1747231841939,-400.0,0.00010971,2]
[361071457,1747231841948,-400.0,0.00010971,2]
[361071458,1747231841958,-426.02,0.00010971,2]
[361071459,1747231841967,-400.0,0.00010971,2]
[361071460,1747231841977,-400.0,0.00010971,2]
[361071461,1747231841986,-437.83,0.00010971,2]
[361071462,1747231841995,-632.44,0.00010971,2]
[361071463,1747231842005,-400.0,0.00010971,2]
[361071464,1747231842015,-498.1,0.00010971,2]
[361071465,1747231842024,-400.0,0.00010971,2]
[361071466,1747231842034,-601.82,0.00010971,2]
[361071467,1747231842044,-5849.98,0.00010971,2]
[361071468,1747231842053,-400.0,0.00010971,2]
[361071469,1747231842063,-400.0,0.00010971,2]
[361071470,1747231842072,-1419.67,0.00010971,2]
[361071471,1747231842083,-764.34,0.00010971,2]
[361071472,1747231842092,-400.0,0.00010971,2]
[361071473,1747231842102,-931.6,0.00010971,2]
[361071474,1747231842111,-400.0,0.00010971,2]
[361071475,1747231842120,-96.35742659,0.00010971,2]
[361071476,1747231842133,-303.64257341,0.00010971,2]
[361071477,1747231842143,-347.90454403,0.00010971,2]
[361071480,1747231842533,-491.02,0.0001097,2]
[361071481,1747231842544,-9363.62352264,0.00010971,2]
[361071482,1747231842555,-260.5936556,0.00010971,2]
[361071483,1747231842568,-6223.95118902,0.00010971,2]
[361071484,1747231842580,-500.0,0.00010971,2]
[361071486,1747231842591,-577.46205938,0.00010971,2]
[361071487,1747231842603,-975.55808439,0.00010971,2]
[361071488,1747231842622,-1028.93609989,0.00010971,2]
[361071489,1747231842635,-682.60523184,0.00010971,2]
[361071490,1747231842646,-1034.355,0.00010971,2]
[361071491,1747231842657,-42696.45061321,0.00010971,2]
[361071492,1747231842666,-1892.98,0.00010971,2]
[361071493,1747231842676,-886.06,0.00010971,2]
[361071494,1747231842686,-6046.85,0.00010971,2]
[361071495,1747231842696,-400.0,0.00010972,2]
[361071496,1747231842709,-400.0,0.00010972,2]
[361071497,1747231842719,-874.46,0.00010972,2]
[361071498,1747231842728,-628.37,0.00010972,2]
[361071499,1747231842737,-424.42,0.00010972,2]
[361071500,1747231842747,-400.0,0.00010972,2]
[361071501,1747231842756,-800.08,0.00010972,2]
[361071502,1747231842766,-400.0,0.00010972,2]
[361071503,1747231842776,-400.0,0.00010972,2]
[361071504,1747231842786,-509.78,0.00010972,2]
[361071505,1747231842795,-400.0,0.00010972,2]
[361071506,1747231842804,-459.55,0.00010972,2]
[361071507,1747231842814,-400.0,0.00010972,2]
[361071508,1747231842823,-400.0,0.00010972,2]
[361071509,1747231842832,-162.47,0.00010972,2]
[361071510,1747231842842,-498.38621788,0.00010972,2]
[361071511,1747231842851,-416.76,0.00010972,2]
[361071512,1747231842860,-570.89,0.00010972,2]
[361071513,1747231842869,-400.0,0.00010972,2]
[361071514,1747231842879,-334.14,0.00010972,2]
[361071515,1747231842891,-16303.0,0.00010972,2]
[361071516,1747231842901,-774.85,0.00010972,2]
[361071517,1747231842911,-1223.83,0.00010972,2]
[361071518,1747231842920,-2181.66,0.00010972,2]
[361071519,1747231842930,-9999.99,0.00010972,2]
[361071520,1747231842939,-400.0,0.00010972,2]
[361071521,1747231842949,-899.47,0.00010972,2]
[361071522,1747231842959,-400.0,0.00010972,2]
[361071523,1747231842968,-1926.81,0.00010972,2]
[361071524,1747231842977,-8106.9,0.00010972,2]
[361071525,1747231842986,-150.99,0.00010972,2]
[361071526,1747231842996,-1322.21,0.00010972,2]
[361071527,1747231843006,-150.99,0.00010972,2]
[361071528,1747231843015,-999.99,0.00010972,2]
[361071529,1747231843026,-400.0,0.00010972,2]
[361071530,1747231843035,-497.33,0.00010972,2]
[361071531,1747231843045,-1570.39,0.00010972,2]
[361071532,1747231843055,-400.0,0.00010972,2]
[361071533,1747231843065,-764.87,0.00010972,2]
[361071534,1747231843075,-400.0,0.00010972,2]
[361071535,1747231843084,-1652.66,0.00010972,2]
[361071536,1747231843094,-400.0,0.00010972,2]
[361071537,1747231843104,-400.0,0.00010972,2]
[361071538,1747231843113,-400.0,0.00010972,2]